bitfinex/quotes_BTCUSD_20260308
["timestamp","ask_amount","ask_price","bid_price","bid_amount"]
[1772937646273,0.07533638,67232.0,67224.0,0.07437755]
[1772937652186,0.07533638,67232.0,67224.0,0.00148]
[1772937655224,0.07533638,67232.0,67224.0,0.07585759]
[1772937661864,0.06440625,67231.0,67215.0,0.17820508]
[1772937662080,0.06517827,67228.0,67215.0,0.07438812]
[1772937662284,0.01098351,67227.0,67214.0,0.07438902]
[1772937662481,0.01114701,67227.0,67215.0,0.07438802]
[1772937662713,0.01114701,67227.0,67213.0,0.07606969]
[1772937662915,0.01114701,67227.0,67214.0,0.00148]
[1772937663119,0.01098351,67225.0,67213.0,0.07606969]
[1772937663431,0.01098351,67223.0,67213.0,0.07606969]
[1772937663819,0.01098351,67223.0,67213.0,0.07458969]
[1772937664136,0.01098351,67223.0,67213.0,0.07606969]
[1772937664313,0.07437819,67224.0,67213.0,0.07458969]
[1772937664518,0.0001635,67224.0,67217.0,0.0002]
[1772937666536,0.01098351,67223.0,67213.0,0.07606969]
[1772937667749,0.07438041,67222.0,67213.0,0.07606969]
[1772937668622,0.07454391,67222.0,67213.0,0.07606969]
[1772937670483,0.0001635,67222.0,67213.0,0.07606969]
[1772937671302,0.07437709,67225.0,67213.0,0.14139757]
[1772937672237,0.08502385,67225.0,67213.0,0.14139757]
[1772937673448,0.01064676,67224.0,67213.0,0.14139757]
[1772937674654,0.0001822,67231.0,67215.0,0.01118174]
[1772937674889,0.07458237,67239.0,67216.0,0.06532788]
[1772937675104,0.07470252,67239.0,67219.0,0.01118174]
[1772937675295,0.07470252,67239.0,67213.0,0.07606969]
[1772937675296,0.07470252,67239.0,67222.0,0.06532788]
[1772937675497,0.07470252,67239.0,67226.0,0.01118174]
[1772937675707,0.07470252,67239.0,67224.0,0.07437819]
[1772937675708,0.07470252,67239.0,67229.0,0.06532788]
[1772937675850,0.07470252,67239.0,67231.0,0.06532788]
[1772937678097,0.07470252,67239.0,67222.0,0.13970607]
[1772937678098,0.01064676,67238.0,67222.0,0.13970607]
[1772937678319,0.01064676,67238.0,67222.0,0.13970782]
[1772937678593,0.01064676,67238.0,67223.0,0.00148]
[1772937678800,0.07470252,67239.0,67224.0,0.00148]
[1772937678801,0.01064676,67236.0,67224.0,0.00148]
[1772937679201,0.01064676,67236.0,67223.0,0.0002]
[1772937679422,0.01064676,67236.0,67225.0,0.00148]
[1772937679618,0.08501278,67235.0,67225.0,0.00148]
[1772937679945,0.01064676,67234.0,67217.0,0.07438594]
[1772937680119,0.11861692,67235.0,67218.0,0.00148]
[1772937680120,0.01064676,67229.0,67218.0,0.00148]
[1772937680443,0.01064676,67229.0,67217.0,0.07438594]
[1772937680646,0.01064676,67229.0,67218.0,0.00148]
[1772937681212,0.06842086,67229.0,67213.0,0.0002]
[1772937681412,0.01064676,67224.0,67213.0,0.0002]
[1772937681615,0.01064676,67222.0,67210.0,0.0002]
[1772937681854,0.01064676,67220.0,67210.0,0.0002]
[1772937682017,0.0743793,67223.0,67210.0,0.07459322]
[1772937682222,0.0743793,67223.0,67211.0,0.06532788]
[1772937682423,0.00148,67222.0,67211.0,0.07650962]
[1772937682844,0.01064676,67221.0,67210.0,0.0002]
[1772937684255,0.11863352,67220.0,67210.0,0.0002]
[1772937684382,0.01064676,67219.0,67210.0,0.0002]
[1772937686437,0.07438483,67218.0,67210.0,0.0002]
[1772937687586,0.07446224,67218.0,67210.0,0.0002]
[1772937687999,0.01064676,67217.0,67209.0,0.0002]
[1772937688229,0.07446224,67218.0,67209.0,0.0002]
[1772937688626,0.07446224,67218.0,67190.0,0.06532788]
[1772937688627,0.06842086,67217.0,67190.0,0.06532788]
[1772937688930,0.0442509,67200.0,67190.0,0.13974355]
[1772937689915,0.0442509,67200.0,67190.0,0.14107285]
[1772937690308,0.0442509,67200.0,67190.0,0.14007285]
[1772937691227,0.07440586,67199.0,67190.0,0.14007285]
[1772937692041,0.07440586,67199.0,67191.0,0.00148]
[1772937692437,0.07440586,67199.0,67190.0,0.14007285]
[1772937692645,0.07440586,67199.0,67191.0,0.00148]
[1772937692829,0.07440586,67199.0,67191.0,0.0018093]
[1772937693034,0.01064676,67198.0,67187.0,0.0061343]
[1772937693245,0.01064676,67196.0,67187.0,0.0061343]
[1772937694359,0.01064676,67196.0,67187.0,0.00653504]
[1772937695078,0.07440389,67201.0,67189.0,0.01118174]
[1772937695283,0.07588365,67202.0,67192.0,0.14472354]
[1772937695660,0.07440365,67202.0,67192.0,0.14472354]
[1772937695874,0.07588365,67202.0,67192.0,0.14472354]
[1772937696073,0.08887365,67217.0,67195.0,0.07030992]
[1772937696279,0.01448677,67217.0,67199.0,0.07030992]
[1772937696535,0.01448677,67217.0,67202.0,0.01118174]
[1772937696724,0.0016643,67223.0,67204.0,0.01118174]
[1772937696880,0.07437513,67227.0,67208.0,0.01118174]
[1772937697082,0.07437644,67226.0,67211.0,0.07030992]
[1772937697327,0.07437513,67227.0,67211.0,0.07030992]
[1772937697328,0.00022001,67232.0,67217.0,0.07030992]
[1772937697526,0.0001143,67233.0,67219.0,0.07030992]
[1772937697726,0.0001143,67233.0,67222.0,0.01118174]
[1772937697928,0.07448287,67233.0,67222.0,0.08149166]
[1772937698083,0.07448287,67233.0,67222.0,0.0818924]
[1772937698527,0.07448287,67233.0,67222.0,0.00040074]
[1772937698708,0.01116335,67232.0,67222.0,0.00188074]
[1772937699503,0.07437045,67231.0,67223.0,0.0743793]
[1772937701517,0.07437045,67231.0,67219.0,0.08170344]
[1772937701740,0.08593454,67231.0,67220.0,0.00148]
[1772937702370,0.00148,67230.0,67219.0,0.07438358]
[1772937702964,0.00148,67230.0,67220.0,0.001]
[1772937703346,0.07437266,67229.0,67220.0,0.001]
[1772937703546,0.07437266,67229.0,67220.0,0.00083222]
[1772937704127,0.07437266,67229.0,67218.0,0.07586472]
[1772937704333,0.07437266,67229.0,67219.0,0.001]
[1772937704533,0.07437266,67229.0,67218.0,0.07586472]
[1772937705150,0.07437266,67229.0,67190.0,0.00015]
[1772937705320,0.07437266,67229.0,67211.0,0.07178992]
[1772937705321,0.01116335,67228.0,67211.0,0.07178992]
[1772937705525,0.07437487,67227.0,67212.0,0.07439147]
[1772937705725,0.07437487,67227.0,67213.0,0.08170344]
[1772937705953,0.07437487,67227.0,67214.0,0.01139352]
[1772937708802,0.0745919,67230.0,67214.0,0.01139352]
[1772937709111,0.07596298,67233.0,67221.0,0.01139352]
[1772937709404,0.07596298,67233.0,67221.0,0.00040074]
[1772937709778,0.01116335,67232.0,67221.0,0.00040074]
[1772937711202,0.07437045,67231.0,67222.0,0.07438041]
[1772937711353,0.07596298,67233.0,67222.0,0.07438041]
[1772937711354,0.07596275,67233.0,67223.0,0.07030992]
[1772937711554,0.07458409,67237.0,67224.0,0.07030992]
[1772937711805,0.00148,67236.0,67227.0,0.01139352]
[1772937712204,0.07458409,67237.0,67227.0,0.01139352]
[1772937712403,0.00148,67236.0,67227.0,0.01139352]
[1772937713159,0.0016157,67236.0,67227.0,0.01139352]
[1772937713285,0.07436602,67235.0,67227.0,0.15607759]
[1772937713936,0.00022001,67232.0,67227.0,0.07437415]
[1772937714103,0.07450172,67235.0,67228.0,0.08170344]
[1772937714888,0.07436492,67236.0,67229.0,0.01139352]
[1772937715935,0.07436492,67236.0,67226.0,0.07437564]
[1772937716138,0.07436492,67236.0,67223.0,0.07585893]
[1772937716366,0.01116335,67233.0,67221.0,0.00040074]
[1772937716496,0.01116335,67231.0,67221.0,0.00040074]
[1772937718523,0.07437156,67230.0,67221.0,0.00040074]
[1772937720170,0.01116335,67229.0,67211.0,0.07439233]
[1772937720339,0.01116335,67227.0,67215.0,0.00148]
[1772937720770,0.07437598,67226.0,67216.0,0.07438705]
[1772937722917,0.07437598,67226.0,67214.0,0.08578057]
[1772937723254,0.07437598,67226.0,67215.0,0.07586815]
[1772937724060,0.07437598,67226.0,67201.0,0.07440365]
[1772937724061,0.0108308,67223.0,67201.0,0.07440365]
[1772937724210,0.0108308,67221.0,67206.0,0.01193066]
[1772937725116,0.07437819,67224.0,67208.0,0.08058385]
[1772937725334,0.07437819,67224.0,67209.0,0.09103451]
[1772937725757,0.00148,67223.0,67209.0,0.09103451]
[1772937726576,0.0123108,67223.0,67209.0,0.09103451]
[1772937728282,0.07438041,67222.0,67209.0,0.16542923]
[1772937729278,0.07438041,67222.0,67209.0,0.16562923]
[1772937732945,0.07438041,67222.0,67206.0,0.00148]
[1772937732946,0.01038522,67221.0,67206.0,0.00148]
[1772937733148,0.01038522,67218.0,67203.0,0.07440141]
[1772937733568,0.01038522,67218.0,67204.0,0.00148]
[1772937734574,0.01038522,67218.0,67203.0,0.07440141]
[1772937734719,0.01038522,67218.0,67205.0,0.00148]
[1772937736290,0.01038522,67216.0,67206.0,0.00148]
[1772937737062,0.01038522,67216.0,67203.0,0.07440144]
[1772937737285,0.01038522,67216.0,67204.0,0.00148]
[1772937737728,0.01038522,67216.0,67205.0,0.00148]
[1772937738035,0.07438815,67215.0,67205.0,0.00148]
[1772937738255,0.01038522,67214.0,67205.0,0.00148]
[1772937738485,0.01038522,67214.0,67205.0,0.07587895]
[1772937738901,0.07438815,67215.0,67205.0,0.07587895]
[1772937739831,0.01038522,67214.0,67204.0,0.07439991]
[1772937740253,0.07439037,67213.0,67204.0,0.07439991]
[1772937741791,0.07439037,67213.0,67204.0,0.07587991]
[1772937742225,0.0743793,67223.0,67208.0,0.0743959]
[1772937742432,0.0743793,67223.0,67211.0,0.08058385]
[1772937742964,0.0758593,67223.0,67211.0,0.08206385]
[1772937743371,0.0743793,67223.0,67211.0,0.08206385]
[1772937743598,0.0758593,67223.0,67211.0,0.08206385]
[1772937744322,0.0758593,67223.0,67212.0,0.07439147]
[1772937744586,0.0758593,67223.0,67213.0,0.08058385]
[1772937744765,0.0743793,67223.0,67213.0,0.09100158]
[1772937744993,0.0743793,67223.0,67214.0,0.01041773]
[1772937746422,0.0745293,67224.0,67215.0,0.07438815]
[1772937746620,0.00022001,67223.0,67215.0,0.07438815]
[1772937746821,0.00022001,67223.0,67214.0,0.01041773]
[1772937747138,0.01060523,67223.0,67211.0,0.0758724]
[1772937748435,0.07438041,67222.0,67211.0,0.0758724]
[1772937749314,0.00022001,67233.0,67213.0,0.01041773]
[1772937749519,0.07458832,67233.0,67216.0,0.08058385]
[1772937749727,0.07458832,67233.0,67219.0,0.01041773]
[1772937749928,0.07458832,67233.0,67222.0,0.08058385]
[1772937750105,0.07458832,67233.0,67223.0,0.01189773]
[1772937750652,0.07458832,67233.0,67224.0,0.07421034]
[1772937758211,0.0507532,67233.0,67224.0,0.07421034]
[1772937758356,0.07436713,67234.0,67226.0,0.08730136]
[1772937759166,0.07436713,67234.0,67226.0,0.01096591]
[1772937760214,0.07436713,67234.0,67227.0,0.07437487]
[1772937762339,0.07436824,67235.0,67227.0,0.07437487]
[1772937762954,0.00022001,67234.0,67227.0,0.07437487]
[1772937764758,0.07436824,67233.0,67227.0,0.07437487]
[1772937766698,0.07458732,67234.0,67227.0,0.07437487]
[1772937768006,0.07458732,67234.0,67228.0,0.01096591]
[1772937768978,0.07458732,67234.0,67228.0,0.0107981]
[1772937770184,0.07458732,67234.0,67228.0,0.08517125]
[1772937771588,0.07458732,67234.0,67228.0,0.0107981]
[1772937771742,0.07458732,67234.0,67228.0,0.08517137]
[1772937771942,0.07458732,67234.0,67228.0,0.07437327]
[1772937773153,0.07458732,67234.0,67225.0,0.07437487]
[1772937773354,0.07458732,67234.0,67225.0,0.08534078]
[1772937773755,0.07458732,67234.0,67227.0,0.0002]
[1772937774579,0.07473812,67234.0,67227.0,0.0002]
[1772937776172,0.07473812,67234.0,67227.0,0.01116591]
[1772937778220,0.07473812,67234.0,67228.0,0.07437377]
[1772937779931,0.07473812,67234.0,67227.0,0.0002]
[1772937781587,0.07473812,67234.0,67227.0,0.01116591]
[1772937783476,0.08232238,69030.0,67227.0,0.01116591]
[1772937783677,0.246,67298.0,67227.0,0.01116591]
[1772937783891,0.0003926,67358.0,67304.0,1.29328716]
[1772937784099,0.07984814,67348.0,67346.0,1e-08]
[1772937784294,0.08973858,67356.0,67347.0,0.26086771]
[1772937784493,0.08973858,67356.0,67347.0,0.151374]
[1772937784699,0.08973858,67356.0,67347.0,0.68829083]
[1772937785047,0.0003926,67358.0,67349.0,0.01026382]
[1772937785236,0.00148,67369.0,67354.0,0.151374]
[1772937785439,0.08141174,67369.0,67355.0,0.00148]
[1772937785583,0.07993174,67369.0,67355.0,0.00148]
[1772937785790,0.07421921,67368.0,67364.0,0.43943189]
[1772937785989,0.07984814,67368.0,67364.0,0.43943189]
[1772937786185,0.02640482,67368.0,67365.0,0.43943189]
[1772937786387,0.00989044,67365.0,67337.0,0.01026382]
[1772937786593,0.07984814,67362.0,67340.0,0.07594362]
[1772937786791,0.00989044,67361.0,67342.0,0.01026382]
[1772937786995,0.00989044,67361.0,67342.0,0.07594362]
[1772937787204,0.00989044,67361.0,67343.0,0.08620744]
[1772937787410,0.00989044,67361.0,67344.0,0.00148]
[1772937788322,0.00989044,67361.0,67345.0,0.07424456]
[1772937788835,0.00989044,67361.0,67344.0,0.10309745]
[1772937789160,0.00989044,67361.0,67345.0,0.3]
[1772937789743,0.00989044,67361.0,67360.0,0.29013795]
[1772937789945,0.07422141,67366.0,67356.0,0.00148]
[1772937790150,0.02666412,67365.0,67356.0,0.00148]
[1772937790848,0.00022001,67368.0,67362.0,0.21729527]
[1772937791174,0.08024814,67375.0,67362.0,0.21729527]
[1772937791175,0.00022001,67375.0,67367.0,0.21716817]
[1772937791365,0.00022001,67375.0,67373.0,0.17354749]
[1772937792242,0.00022001,67375.0,67374.0,0.04471991]
[1772937792549,0.0011704,67374.0,67366.0,0.00148]
[1772937793406,0.00022001,67375.0,67365.0,0.00148]
[1772937793608,0.00126463,67374.0,67365.0,0.0015636]
[1772937793952,0.07984814,67377.0,67365.0,0.0015636]
[1772937794160,0.00148,67378.0,67365.0,0.0015636]
[1772937794377,0.00148,67378.0,67365.0,8.36e-05]
[1772937794793,0.01347094,67380.0,67367.0,0.02835566]
[1772937794966,0.01347094,67380.0,67369.0,0.11616781]
[1772937795169,0.01347094,67380.0,67371.0,0.11616781]
[1772937795454,0.01347094,67380.0,67370.0,0.02983566]
[1772937795455,0.00022001,67382.0,67372.0,0.0282927]
[1772937795694,0.00022001,67382.0,67373.0,0.11613781]
[1772937796071,0.00022001,67382.0,67374.0,0.3]
[1772937796275,0.00148,67388.0,67376.0,0.11613781]
[1772937796477,0.00148,67388.0,67377.0,0.14541639]
[1772937796794,0.00148,67388.0,67378.0,0.14389639]
[1772937796968,0.00148,67388.0,67379.0,0.14389639]
[1772937797167,0.00148,67388.0,67380.0,0.14389639]
[1772937797408,0.00148,67388.0,67381.0,0.14389639]
[1772937797612,0.00148,67388.0,67382.0,0.14389639]
[1772937797807,0.00148,67388.0,67383.0,0.14389639]
[1772937798003,0.00148,67388.0,67384.0,0.14389639]
[1772937798202,0.00148,67388.0,67385.0,0.14389639]
[1772937798426,0.00148,67388.0,67386.0,0.14389639]
[1772937798622,0.00148,67388.0,67387.0,0.14389639]
[1772937798836,0.00148,67388.0,67350.0,0.0004]
[1772937799193,0.00148,67388.0,67358.0,0.13445865]
[1772937799194,0.00148,67387.0,67358.0,0.13445865]
[1772937799366,0.00148,67387.0,67353.0,0.07423471]
[1772937799367,0.00148,67387.0,67361.0,0.02834176]
[1772937799542,0.00127662,67387.0,67365.0,0.02834176]
[1772937799866,0.00127662,67387.0,67368.0,0.13445865]
[1772937800067,0.07419938,67386.0,67369.0,0.00148]
[1772937800268,0.00131469,67385.0,67369.0,0.00148]
[1772937800491,0.01218059,67382.0,67362.0,0.13445865]
[1772937800648,0.00131469,67379.0,67363.0,0.00148]
[1772937800970,0.00148,67379.0,67363.0,0.00148]
[1772937801269,0.00148,67379.0,67363.0,0.1364734]
[1772937802420,0.07420269,67383.0,67364.0,0.07422362]
[1772937802640,0.07441725,67388.0,67368.0,0.1349934]
[1772937802965,0.07419965,67386.0,67372.0,0.16464985]
[1772937803462,0.00148,67386.0,67372.0,0.16464985]
[1772937803613,0.07419828,67387.0,67372.0,0.16464985]
[1772937803813,0.07567828,67387.0,67372.0,0.16464985]
[1772937804529,0.07567828,67387.0,67369.0,0.00148]
[1772937805183,0.07567828,67387.0,67370.0,0.1349934]
[1772937807169,0.07567828,67387.0,67366.0,0.07422141]
[1772937807170,0.07567828,67387.0,67352.0,0.28747472]
[1772937807407,0.01290893,67386.0,67359.0,0.07422877]
[1772937807618,0.01290893,67386.0,67362.0,0.00148]
[1772937808105,0.07419828,67387.0,67365.0,0.1349934]
[1772937808439,0.00148,67385.0,67369.0,0.1351934]
[1772937808816,0.00148,67385.0,67373.0,0.1349934]
[1772937809302,0.00148,67385.0,67373.0,0.16349589]
[1772937809844,0.00022001,67388.0,67377.0,0.1349934]
[1772937810599,0.07232093,67389.0,67377.0,0.1349934]
[1772937811018,0.07022492,67389.0,67378.0,0.14499874]
[1772937811220,0.07022492,67389.0,67379.0,0.14499874]
[1772937811424,0.00148,67391.0,67380.0,0.14499874]
[1772937811638,0.00148,67391.0,67381.0,0.14499874]
[1772937811837,0.00148,67391.0,67382.0,0.14499874]
[1772937812041,0.00148,67391.0,67383.0,0.14499874]
[1772937812241,0.00148,67391.0,67384.0,0.14499874]
[1772937812512,0.00148,67391.0,67389.0,0.21940283]
[1772937812651,0.00148,67391.0,67390.0,0.14499874]
[1772937812859,0.00176867,67391.0,67390.0,0.14499874]
[1772937813168,0.07608259,67391.0,67390.0,0.14484874]
[1772937813357,0.00148,67391.0,67390.0,0.00113477]
[1772937813993,0.00148,67391.0,67390.0,0.2219992]
[1772937814269,0.00148,67391.0,67390.0,0.00113477]
[1772937814787,0.00148,67391.0,67379.0,0.1349934]
[1772937815507,0.07419498,67390.0,67379.0,0.1349934]
[1772937816230,0.00148,67391.0,67379.0,0.1364734]
[1772937816439,0.00148,67391.0,67380.0,0.16416658]
[1772937816977,0.00148,67391.0,67381.0,0.0002]
[1772937817175,0.07567389,67391.0,67381.0,0.0002]
[1772937817380,0.0758939,67391.0,67381.0,0.0002]
[1772937818580,0.0758939,67391.0,67382.0,0.1349934]
[1772937818972,0.00170001,67391.0,67382.0,0.1349934]
[1772937819317,0.00170001,67391.0,67386.0,0.1349934]
[1772937819471,0.00170001,67391.0,67387.0,0.16390925]
[1772937819673,0.00170001,67391.0,67387.0,0.1349934]
[1772937820130,0.00022001,67391.0,67387.0,0.1349934]
[1772937820932,0.07252418,67394.0,67387.0,0.1349934]
[1772937821954,0.00148,67395.0,67387.0,0.1349934]
[1772937822157,0.07418871,67396.0,67387.0,0.1349934]
[1772937822344,0.00148,67395.0,67387.0,0.1349934]
[1772937822954,0.0004,67425.0,67389.0,0.17142273]
[1772937823150,0.07990131,67430.0,67411.0,0.00774509]
[1772937823462,0.12975504,67429.0,67411.0,0.00762509]
[1772937823613,0.07646394,67429.0,67411.0,0.08179586]
[1772937823818,0.07646394,67429.0,67415.0,0.1343031]
[1772937824019,0.07646394,67429.0,67411.0,0.00762509]
[1772937824020,0.12975504,67428.0,67411.0,0.00762509]
[1772937824270,0.12975504,67428.0,67412.0,0.1343031]
[1772937824271,0.0018803,67428.0,67412.0,0.1343031]
[1772937824427,0.00148,67427.0,67415.0,0.02866691]
[1772937824771,0.00148,67427.0,67415.0,0.1343031]
[1772937824921,0.0004003,67428.0,67418.0,0.1343031]
[1772937824922,0.07646394,67426.0,67418.0,0.1343031]
[1772937825119,0.00575,67430.0,67422.0,0.1343031]
[1772937825321,0.00586999,67430.0,67423.0,0.0292686]
[1772937825723,0.00586999,67430.0,67423.0,0.1635717]
[1772937825927,0.07413935,67441.0,67424.0,0.1343031]
[1772937826149,0.07754393,67435.0,67424.0,0.1635717]
[1772937826478,0.07754393,67435.0,67419.0,0.00148]
[1772937826479,0.07902393,67435.0,67416.0,0.00148]
[1772937826633,0.07902393,67435.0,67419.0,0.0292686]
[1772937826849,0.07902393,67435.0,67421.0,0.1635717]
[1772937827058,0.07902393,67435.0,67422.0,0.0292686]
[1772937827476,0.00022001,67428.0,67422.0,0.0292686]
[1772937828316,0.00022001,67428.0,67423.0,0.1343031]
[1772937828477,0.00022001,67428.0,67424.0,0.1343031]
[1772937828666,0.00022001,67428.0,67424.0,0.16344453]
[1772937828868,0.00022001,67428.0,67416.0,0.0004003]
[1772937829072,0.07646394,67427.0,67416.0,0.0745658]
[1772937829697,0.0004,67427.0,67417.0,0.1343031]
[1772937829892,0.00148,67427.0,67418.0,0.07416416]
[1772937830092,0.00107999,67435.0,67422.0,0.02902466]
[1772937830443,0.00148,67434.0,67422.0,0.02902466]
[1772937831117,0.00148,67433.0,67423.0,0.1343031]
[1772937831321,0.07754394,67433.0,67423.0,0.1343031]
[1772937831544,0.00148,67432.0,67423.0,0.1343031]
[1772937831721,0.00148,67431.0,67423.0,0.1343031]
[1772937832605,0.15021181,67433.0,67423.0,0.1343031]
[1772937832801,0.00148,67432.0,67423.0,0.1343031]
[1772937833002,0.15021181,67433.0,67416.0,0.0004003]
[1772937833246,0.00148,67431.0,67417.0,0.00148]
[1772937833424,0.00148,67431.0,67417.0,0.03026177]
[1772937833623,0.00148,67431.0,67417.0,0.1357831]
[1772937833828,0.00148,67431.0,67419.0,0.02878177]
[1772937834024,0.00148,67431.0,67420.0,0.02878177]
[1772937834426,0.00148,67431.0,67420.0,0.10294329]
[1772937834613,0.07606394,67430.0,67421.0,0.16308487]
[1772937834795,0.00148,67429.0,67421.0,0.16308487]
[1772937835021,0.00148,67429.0,67421.0,0.1343031]
[1772937835243,0.00148,67429.0,67423.0,0.16296001]
[1772937835594,0.06527147,67430.0,67423.0,0.16296001]
[1772937835742,0.06527147,67430.0,67420.0,0.07416185]
[1772937835743,0.06527147,67430.0,67416.0,0.07456647]
[1772937835937,0.06527147,67430.0,67416.0,0.07604647]
[1772937836798,0.13942259,67430.0,67416.0,0.07604647]
[1772937837094,0.13942259,67430.0,67421.0,0.0002]
[1772937837311,0.14471649,67430.0,67421.0,0.0002]
[1772937837867,0.07056537,67430.0,67421.0,0.0002]
[1772937838066,0.14471643,67430.0,67421.0,0.0002]
[1772937838465,0.00148,67429.0,67421.0,0.0002]
[1772937838666,0.00148,67429.0,67423.0,0.02621181]
[1772937838884,0.00148,67429.0,67422.0,0.20846252]
[1772937839090,0.07563232,67429.0,67421.0,0.0002]
[1772937839687,0.00527777,67428.0,67414.0,0.0002]
[1772937840091,0.00527777,67428.0,67414.0,0.07436845]
[1772937840431,0.00527777,67428.0,67414.0,0.0002]
[1772937840635,0.07415427,67427.0,67414.0,0.0002]
[1772937841226,0.00515537,67426.0,67414.0,0.0002]
[1772937841384,0.0055551,67426.0,67414.0,0.0002]
[1772937841929,0.0055551,67426.0,67396.0,0.07418767]
[1772937842132,0.13338964,67423.0,67403.0,0.0799303]
[1772937842287,0.00490898,67421.0,67404.0,0.14483835]
[1772937842490,0.00490898,67421.0,67404.0,0.17068661]
[1772937842692,0.00490898,67421.0,67405.0,0.02584826]
[1772937842892,0.07416196,67420.0,67405.0,0.02584826]
[1772937843106,0.00490898,67419.0,67405.0,0.02584826]
[1772937843507,0.00490898,67419.0,67404.0,0.14483835]
[1772937844340,0.00490898,67419.0,67404.0,0.17068661]
[1772937844977,0.00490898,67419.0,67403.0,0.07993057]
[1772937844978,0.00466614,67416.0,67403.0,0.00399807]
[1772937845166,0.14375912,67417.0,67403.0,0.00399807]
[1772937845167,0.00614614,67415.0,67403.0,0.00399807]
[1772937845316,0.02628414,67414.0,67400.0,0.0004]
[1772937845722,0.02628414,67413.0,67400.0,0.0004]
[1772937845922,0.14375912,67412.0,67400.0,1e-08]
[1772937846223,0.02628414,67411.0,67400.0,1e-08]
[1772937846565,0.02628414,67409.0,67400.0,1e-08]
[1772937846743,0.02628414,67407.0,67400.0,1e-08]
[1772937846933,0.07417737,67406.0,67400.0,1e-08]
[1772937847129,0.10046151,67406.0,67400.0,1e-08]
[1772937847329,0.02628414,67405.0,67400.0,1e-08]
[1772937848340,0.02675973,67404.0,67400.0,1e-08]
[1772937848660,0.02675973,67404.0,67391.0,0.14483835]
[1772937848840,0.07417737,67406.0,67394.0,0.02777928]
[1772937849045,0.07417737,67406.0,67395.0,0.17261763]
[1772937849756,0.07417737,67406.0,67395.0,0.17246763]
[1772937850922,0.07417737,67407.0,67396.0,0.07418837]
[1772937851100,0.07417847,67405.0,67398.0,0.17261763]
[1772937851966,0.07417847,67405.0,67398.0,0.14483835]
[1772937852367,0.07417847,67405.0,67393.0,0.10197083]
[1772937852574,0.07417847,67405.0,67394.0,0.14483835]
[1772937853314,0.07417847,67405.0,67395.0,0.07418947]
[1772937854093,0.07417847,67405.0,67395.0,0.07438947]
[1772937855504,0.07417847,67405.0,67395.0,0.0002]
[1772937861509,0.07417847,67405.0,67395.0,0.14503835]
[1772937862382,0.07417847,67405.0,67395.0,0.21922753]
[1772937862685,0.07417847,67405.0,67396.0,0.17261763]
[1772937863414,0.07417847,67405.0,67391.0,0.07419336]
[1772937863415,0.07417847,67405.0,67387.0,0.07419774]
[1772937863692,0.02675973,67404.0,67388.0,0.07439717]
[1772937863845,0.02675973,67404.0,67388.0,0.10217645]
[1772937864058,0.02675973,67404.0,67389.0,0.17261763]
[1772937864243,0.02675973,67404.0,67395.0,0.0002]
[1772937865135,0.07418067,67403.0,67395.0,0.0002]
[1772937867220,0.00148,67410.0,67398.0,0.14483835]
[1772937867461,0.00148,67410.0,67402.0,0.14483835]
[1772937867693,0.00148,67410.0,67396.0,0.17261763]
[1772937867919,0.02823973,67410.0,67396.0,0.17261763]
[1772937868120,0.02823973,67410.0,67396.0,0.17246763]
[1772937868794,0.02823973,67410.0,67396.0,0.14483835]
[1772937868971,0.02823973,67410.0,67397.0,0.17261763]
[1772937869350,0.07417407,67409.0,67397.0,0.17261763]
[1772937869553,0.07439079,67412.0,67398.0,0.07418617]
[1772937869759,0.07564638,67416.0,67398.0,0.07418617]
[1772937869954,0.07416821,67415.0,67402.0,0.14483835]
[1772937870146,0.07564821,67415.0,67405.0,0.02777928]
[1772937870345,0.07564821,67415.0,67407.0,0.02777928]
[1772937870665,0.00148,67414.0,67407.0,0.02777928]
[1772937871226,0.00148,67413.0,67407.0,0.02777928]
[1772937871503,0.07416103,67421.0,67398.0,0.00111991]
[1772937871715,0.14375912,67416.0,67399.0,0.07418447]
[1772937872017,0.02675973,67415.0,67399.0,0.07418447]
[1772937872216,0.02675973,67413.0,67399.0,0.07418447]
[1772937872389,0.02675973,67413.0,67399.0,0.10196375]
[1772937873152,0.02675973,67413.0,67400.0,0.02777928]
[1772937873377,0.02675973,67413.0,67399.0,0.21081469]
[1772937873558,0.07417077,67412.0,67399.0,0.21081469]
[1772937873754,0.00022001,67410.0,67399.0,0.21081469]
[1772937874752,0.02755351,67410.0,67399.0,0.21081469]
[1772937875860,0.07417407,67409.0,67399.0,0.21081469]
[1772937876074,0.00148,67408.0,67399.0,0.21081469]
[1772937877411,0.02710382,67407.0,67399.0,0.07418447]
[1772937877951,0.10128092,67407.0,67398.0,0.00011991]
[1772937878762,0.02710382,67406.0,67398.0,0.00011991]
[1772937879198,0.00148,67408.0,67398.0,0.00011991]
[1772937879403,0.00148,67408.0,67399.0,0.13663022]
[1772937880576,0.00148,67408.0,67401.0,0.13663022]
[1772937881190,0.07565524,67408.0,67401.0,0.13663022]
[1772937882668,0.07565524,67408.0,67402.0,0.07418177]
[1772937883096,0.07565524,67408.0,67401.0,0.21081248]
[1772937883552,0.00148,67408.0,67402.0,0.13663022]
[1772937885558,0.07565532,67408.0,67402.0,0.21081092]
[1772937885860,0.00148,67408.0,67402.0,0.21081092]
[1772937886958,0.07565527,67408.0,67399.0,0.0002]
[1772937887105,0.00148,67407.0,67399.0,0.0002]
[1772937887308,0.00148,67407.0,67400.0,0.13663022]
[1772937887759,0.00148,67407.0,67400.0,0.13648022]
[1772937888454,0.00148,67407.0,67399.0,0.0002]
[1772937889280,0.10220308,67407.0,67399.0,0.0002]
[1772937890311,0.00148,67411.0,67400.0,0.13663022]
[1772937890989,0.07416526,67417.0,67401.0,0.07418287]
[1772937891186,0.02792366,67416.0,67402.0,0.13663022]
[1772937891390,0.02792366,67416.0,67402.0,0.13163022]
[1772937892125,0.00022001,67407.0,67402.0,0.13163022]
[1772937892274,0.00148,67410.0,67402.0,0.13163022]
[1772937893729,0.00148,67410.0,67403.0,0.07418067]
[1772937895331,0.00148,67410.0,67403.0,0.21081089]
[1772937895563,0.07565363,67410.0,67403.0,0.21081089]
[1772937895975,0.00148,67410.0,67403.0,0.21081089]
[1772937896734,0.02761832,67410.0,67403.0,0.07418067]
[1772937897865,0.02761832,67410.0,67401.0,0.07418287]
[1772937897866,0.00148,67410.0,67401.0,0.07418287]
[1772937898053,0.00148,67410.0,67401.0,0.21081309]
[1772937898665,0.07565319,67410.0,67401.0,0.21081309]
[1772937899092,0.07565319,67410.0,67401.0,0.21007107]
[1772937899760,0.00148,67410.0,67401.0,0.21007107]
[1772937899956,0.00148,67410.0,67399.0,0.0002]
[1772937899957,0.01730734,67409.0,67399.0,0.0002]
[1772937900184,0.01280559,67409.0,67399.0,0.0002]
[1772937900433,0.13436472,67406.0,67392.0,1e-08]
[1772937900645,0.02472424,67403.0,67392.0,1e-08]
[1772937900815,0.02620424,67402.0,67392.0,1e-08]